Cogmind - Beta 14 @@@ ROGUE MODE // 2025.03.15 @ 16:22:00 Player: LightKnight Result: Destroyed by MAIN.C with High-powered Disruptor Cannon Performance ------------- Evolutions (9) 4500 Regions Visited (23) 4600 Robots Destroyed (21) 105 Value Destroyed (736) 736 Prototype IDs (70) 1400 Alien Tech Used (1) 200 Bonus (10680) 10680 TOTAL SCORE: 22221 Bonus ------- Follower Combat Kills 80 Aligned with FarCom 300 Met Zhirov 300 Met Warlord at Base 500 MAIN.C Attacked Warlord 500 Met Warlord at Research 2000 Met MAIN.C 5000 Met Warlord at Command 2000 Cogmind --------- Core Integrity 0/1600 Matter 295/300 Energy 49/100 System Corruption 17% Temperature Cool (18) Movement Core (50) Location -1/Command Parts ------- > --- POWER (2) -------- (None) > --- PROPULSION (6) --- (None) > --- UTILITY (15) ----- Triangulator Spectral Analyzer Graphene Brace Improved Hacking Suite Advanced Hacking Suite System Mapper System Shield > --- WEAPON (2) ------- (None) > --- INVENTORY (5) ---- Stasis Canceller Heavy Plasma Cannon Peak State ------------ > --- POWER ------------ Light Antimatter Reactor Micro Antimatter Reactor > --- PROPULSION ------- Impulse Thruster Field Propulsion Array Q-thruster Electron Diverter Electron Diverter > --- UTILITY ---------- Advanced Power Amplifier Advanced Weight Redist. System Triangulator Spectral Analyzer Advanced Terrain Scanner Advanced Terrain Scan Processor Improved Transmission Jammer Makeshift ECM Suite Advanced Cloaking Device Experimental Utility Shielding Improved Hacking Suite Advanced Hacking Suite System Mapper System Shield Advanced System Shield > --- WEAPON ----------- Phasing Sabre Vortex Lance > --- INVENTORY -------- Cooled Impulse Thruster Stasis Canceller Transdimensional Reconstructor Heavy Plasma Cannon [Rating: 166] Favorites ----------- Power Light Nuclear Core Engine Light Angular Momentum Engine Power Core Light Nuclear Core Reactor Light Antimatter Reactor Propulsion Improved Cesium-ion Thruster Leg Aluminum Leg Flight Unit Improved Cesium-ion Thruster Utility Advanced Hacking Suite Device Advanced Terrain Scanner Storage Small Storage Unit Processor Advanced Terrain Scan Processor Hackware Advanced Hacking Suite Protection Experimental Utility Shielding Weapon Phasing Sabre Energy Gun EM Pulse Gun Energy Cannon Beam Cannon Ballistic Gun Assault Rifle Launcher Rocket Launcher Special Weapon Improved Plasma Cutter Impact Weapon Flail Slashing Weapon Phasing Sabre Piercing Weapon Vortex Lance Build | -11 -10 -10 -10 -9 -8 -7 -7 -7 -7 -5 -5 -5 -5 -4 -4 -4 -4 -4 -3 -3 -2 -1 -1 ------- Run | Yrd Mat Min Exi Min Mat Fac Sto Rec Scr Fac Upp Upp War Pro Fac Upp Upp Zhi Pro Res Res Acc Com Slots Evolved 18 | . . . . . 4 2 . . . 4 . . . . 2 . . . . 2 2 2 . Power 1 | . . . . . 1 . . . . . . . . . . . . . . . . . . Propulsion 4 | . . . . . 1 1 . . . 1 . . . . . . . . . 1 . . . Utility 13 | . . . . . 2 1 . . . 3 . . . . 2 . . . . 1 2 2 . Weapon . | . . . . . . . . . . . . . . . . . . . . . . . . Parts Attached 112 | 3 . 7 . . 17 5 3 1 3 16 4 . 14 1 5 5 . 1 2 6 4 3 12 Power 18 | . . 1 . . 3 . 1 . . 3 . . 3 . 1 2 . . 2 1 . . 1 Engine 5 | . . . . . 1 . . . . 2 . . 1 . 1 . . . . . . . . Core 9 | . . 1 . . 2 . 1 . . 1 . . 1 . . 1 . . 2 . . . . Reactor 4 | . . . . . . . . . . . . . 1 . . 1 . . . 1 . . 1 Propulsion 19 | . . 1 . . 4 1 . . . 2 . . 2 . 1 . . . . 2 1 . 5 Treads . | . . . . . . . . . . . . . . . . . . . . . . . . Leg 2 | . . 1 . . 1 . . . . . . . . . . . . . . . . . . Wheel . | . . . . . . . . . . . . . . . . . . . . . . . . Hover . | . . . . . . . . . . . . . . . . . . . . . . . . Flight 17 | . . . . . 3 1 . . . 2 . . 2 . 1 . . . . 2 1 . 5 Utility 49 | . . 2 . . 6 3 1 1 3 10 3 . 4 1 3 1 . 1 . 2 3 2 3 Device 34 | . . 2 . . 3 3 . 1 2 8 3 . 2 1 2 1 . . . 1 1 2 2 Storage . | . . . . . . . . . . . . . . . . . . . . . . . . Processor 4 | . . . . . 1 . . . 1 . . . 1 . . . . . . 1 . . . Hackware 9 | . . . . . 1 . 1 . . 2 . . . . 1 . . 1 . . 2 . 1 Protection 2 | . . . . . 1 . . . . . . . 1 . . . . . . . . . . Artifact . | . . . . . . . . . . . . . . . . . . . . . . . . Weapon 26 | 3 . 3 . . 4 1 1 . . 1 1 . 5 . . 2 . . . 1 . 1 3 Energy Gun 5 | 2 . 1 . . 2 . . . . . . . . . . . . . . . . . . Energy Cannon 6 | . . 1 . . . . . . . . 1 . 2 . . . . . . . . 1 1 Ballistic Gun 1 | 1 . . . . . . . . . . . . . . . . . . . . . . . Ballistic Cannon . | . . . . . . . . . . . . . . . . . . . . . . . . Launcher 1 | . . 1 . . . . . . . . . . . . . . . . . . . . . Special Weapon 1 | . . . . . . . . . . . . . 1 . . . . . . . . . . Impact Weapon 3 | . . . . . 2 1 . . . . . . . . . . . . . . . . . Slashing Weapon 5 | . . . . . . . 1 . . 1 . . 1 . . 2 . . . . . . . Piercing Weapon 4 | . . . . . . . . . . . . . 1 . . . . . . 1 . . 2 Special Melee Weapon . | . . . . . . . . . . . . . . . . . . . . . . . . Unidentified Prototypes 14 | . . . . . 1 1 . . . . 1 . 8 . 1 . . 1 . . . . 1 Parts Lost 23 | . . 1 . . . . . . . 2 . . . . . . . . . . . . 20 Power 2 | . . . . . . . . . . . . . . . . . . . . . . . 2 Propulsion 7 | . . . . . . . . . . . . . . . . . . . . . . . 7 Utility 10 | . . . . . . . . . . 2 . . . . . . . . . . . . 8 Weapon 4 | . . 1 . . . . . . . . . . . . . . . . . . . . 3 Highest Loss Streak 19 | . . 1 . . . . . . . 1 . . . . . . . . . . . . 19 To Critical Strikes . | . . . . . . . . . . . . . . . . . . . . . . . . Average Slot Usage (%) 90 | . 85 99 100 100 65 90 92 84 92 84 91 94 93 94 89 89 89 88 89 86 93 93 85 Engine 2 | . 14 5 . . 2 . . . . 4 5 5 5 5 5 1 . . . . . . . Core 6 | . . 8 14 14 15 15 15 15 15 5 5 5 4 5 5 5 5 5 5 . . . . Reactor 2 | . . . . . . . . . . . . . . . . 3 5 5 5 8 8 8 7 Leg 7 | . 28 28 28 28 5 . . . . . . . . . . . . . . . . . . Flight 16 | . . . . . 21 30 30 30 30 23 23 23 23 23 21 21 21 21 21 23 21 20 18 Device 20 | . . 13 14 14 11 23 22 15 23 29 35 35 28 23 26 26 26 23 21 19 18 26 25 Storage 3 | . 14 14 14 14 2 . . . . . . . . . . . . . . . . . . Processor 4 | . . . . . . 7 7 . 4 5 5 5 6 11 10 10 10 10 10 10 10 8 4 Hackware 9 | . . . . . 2 7 7 15 9 6 5 5 5 5 9 10 10 12 15 14 19 20 22 Protection 1 | . . . . . . . . . . . . . 3 5 5 5 5 5 5 4 4 4 3 Energy Gun 2 | . 28 13 . . 3 . . . . . . . . . . . . . . . . . . Energy Cannon 2 | . . 7 14 14 . . . . . . 2 5 3 5 . . . . . . . . . Launcher 2 | . . 6 14 14 . . . . . . . . . . . . . . . . . . . Slashing Weapon 3 | . . . . . . . 1 7 7 5 5 5 4 5 5 5 5 5 5 4 4 4 3 Peak Build Rating 166 | 6 6 13 14 14 42 46 50 50 54 86 83 83 104 107 112 120 120 122 123 145 158 166 159 Average Rating 78 | 6 6 11 13 14 30 45 46 47 52 77 81 83 91 105 108 117 120 119 122 132 154 161 147 On Entrance 74 | 6 6 6 13 14 14 35 46 43 48 54 72 83 83 104 107 110 120 120 122 123 145 158 158 Naked Turns . | . . . . . . . . . . . . . . . . . . . . . . . . Heaviest Build 44 | 11 11 18 18 18 32 23 23 21 23 36 39 39 41 32 30 35 35 35 33 42 43 44 42 Greatest Support 52 | 20 20 20 20 20 33 23 23 23 23 40 40 40 44 44 36 36 36 36 36 44 46 46 52 Greatest Overweight (x) 5 | . . . . . 5 . . . . . . . 1 . . . . . . . . . 3 Average Overweight (x) . | . . . . . . . . . . . . . . . . . . . . . . . . Largest Inventory Capacity 8 | 8 8 8 8 8 8 5 5 5 5 5 5 5 5 5 5 5 5 5 5 5 5 5 5 Average Capacity 5 | 8 8 8 8 8 5 5 5 5 5 5 5 5 5 5 5 5 5 5 5 5 5 5 5 Most Carried 8 | 6 8 8 8 8 8 4 5 5 5 5 4 4 5 5 5 5 5 5 5 5 5 5 5 Average Carried 5 | 6 7 7 7 7 5 3 4 5 4 4 3 3 4 5 4 5 5 4 4 4 4 4 4 Final Capacity 8 | 8 8 8 8 8 5 5 5 5 5 5 5 5 5 5 5 5 5 5 5 5 5 5 5 Final Carried 8 | 6 8 8 8 8 5 4 5 5 5 5 3 4 5 5 5 5 5 5 5 5 5 5 2 Class Distribution -------------------- 24% | Mutant 13% | Wizard-Ninja 11% | Wizard-Sprinter 10% | Hacker-Ninja 10% | Infiltrator-Sprinter 9% | Ninja 5% | Infiltrator-Ninja 4% | Sprinter Dominant Class ---------------- Mutant | -10/Materials Mutant | -10/Mines Mutant | -10/Exiles Mutant | -9/Mines Sprinter | -8/Materials Infiltrator-Sprinter | -7/Factory Infiltrator-Sprinter | -7/Storage Hacker-Sprinter | -7/Recycling Infiltrator-Sprinter | -7/Scraptown Infiltrator-Ninja | -5/Factory Ninja | -5/Upper Caves Ninja | -5/Upper Caves Ninja | -5/Warlord Ninja | -4/Proximity Caves Hacker-Assassin | -4/Factory Hacker-Ninja | -4/Upper Caves Hacker-Ninja | -4/Upper Caves Hacker-Ninja | -4/Zhirov Hacker-Ninja | -3/Proximity Caves Hacker-Ninja | -3/Research Wizard-Ninja | -2/Research Wizard-Ninja | -1/Access Wizard-Sprinter | -1/Command Resources | -11 -10 -10 -10 -9 -8 -7 -7 -7 -7 -5 -5 -5 -5 -4 -4 -4 -4 -4 -3 -3 -2 -1 -1 ----------- Run | Yrd Mat Min Exi Min Mat Fac Sto Rec Scr Fac Upp Upp War Pro Fac Upp Upp Zhi Pro Res Res Acc Com Matter Collected 1305 | 178 . 155 . . . 36 45 179 10 . 103 115 . 133 . 107 10 . 40 30 70 30 64 Remotely . | . . . . . . . . . . . . . . . . . . . . . . . . Salvage Created 662 | . . 327 . . . 36 26 . . 32 . . . 9 . . . . . 77 . . 155 Parts 42 | . . 18 . . . . . . . 3 . . . . . . . . . 8 . . 13 Haulers Intercepted . | . . . . . . . . . . . . . . . . . . . . . . . . Recyclers Shooed 1 | . . 1 . . . . . . . . . . . . . . . . . . . . . Parts Field Recycled . | . . . . . . . . . . . . . . . . . . . . . . . . Retrieved Matter . | . . . . . . . . . . . . . . . . . . . . . . . . Parts Self-Destructed . | . . . . . . . . . . . . . . . . . . . . . . . . Prevented . | . . . . . . . . . . . . . . . . . . . . . . . . Kills | -11 -10 -10 -10 -9 -8 -7 -7 -7 -7 -5 -5 -5 -5 -4 -4 -4 -4 -4 -3 -3 -2 -1 -1 ------- Run | Yrd Mat Min Exi Min Mat Fac Sto Rec Scr Fac Upp Upp War Pro Fac Upp Upp Zhi Pro Res Res Acc Com Combat Hostiles Destroyed 14 | . . 11 . . . . . . . . . . . 1 . . . . . . . . 2 Melee 3 | . . . . . . . . . . . . . . 1 . . . . . . . . 2 Guns 4 | . . 4 . . . . . . . . . . . . . . . . . . . . . Cannons 1 | . . 1 . . . . . . . . . . . . . . . . . . . . . AOE 5 | . . 5 . . . . . . . . . . . . . . . . . . . . . Classes Destroyed 5 | . . 2 . . . 1 . . . . . . . 1 . . . . . . . . 1 Drone 1 | . . . . . . . . . . . . . . 1 . . . . . . . . . Watcher 7 | . . . . . . 1 1 . . 1 . . . . . . . . . 2 . . 2 Swarmer 4 | . . 3 . . . . . . . . . . . . . . . . . . . . 1 Cutter 1 | . . . . . . . . . . . . . . . . . . . . . . . 1 Grunt 8 | . . 8 . . . . . . . . . . . . . . . . . . . . . Best Kill Streak 5 | . . 5 . . . 1 1 . . 1 . . . 1 . . . . . 1 . . 2 Combat Bots Only 5 | . . 5 . . . . . . . . . . . 1 . . . . . . . . 1 Max Kills in Single Turn 3 | . . 3 . . . 1 1 . . 1 . . . 1 . . . . . 1 . . 1 Gunslinging . | . . . . . . . . . . . . . . . . . . . . . . . . Exploded 3 | . . 3 . . . . . . . . . . . . . . . . . . . . . Melee 1 | . . . . . . . . . . . . . . 1 . . . . . . . . 1 Uniques/NPCs Destroyed . | . . . . . . . . . . . . . . . . . . . . . . . . Combat | -11 -10 -10 -10 -9 -8 -7 -7 -7 -7 -5 -5 -5 -5 -4 -4 -4 -4 -4 -3 -3 -2 -1 -1 -------- Run | Yrd Mat Min Exi Min Mat Fac Sto Rec Scr Fac Upp Upp War Pro Fac Upp Upp Zhi Pro Res Res Acc Com Hostile Shots Fired 284 | . . 29 . . 6 14 87 . . 10 . 4 . 10 3 . . . . . 2 19 100 Missed 132 | . . 7 . . 3 7 51 . . 6 . 3 . 5 3 . . . . . 1 8 38 Damage Taken 4069 | . . 351 . . 44 87 384 . . 86 . 23 . 68 . . . . . . 28 258 2740 Core 1793 | . . 62 . . . 18 99 . . . . . . . . . . . . . . 94 1520 Absorbed by Shields . | . . . . . . . . . . . . . . . . . . . . . . . . Redirected to Shielding 173 | . . . . . . . . . . . . . . 30 . . . . . . . 44 99 Regen/Repaired (Parts) 20 | . . . . . . . . . . . . . 20 . . . . . . . . . . Core Remaining (%) 94 | 100 . . . 75 100 . . . 83 . . . . 100 . . . . 100 100 100 . . Volleys Fired 41 | . . 20 . . . . . . . . 5 3 . 2 . . . . . . . 8 3 Largest 2 | . . 2 . . . . . . . . 1 1 . 1 . . . . . . . 1 1 Hottest 125 | . . 125 . . . . . . . . 90 90 . 90 . . . . . . . 90 120 Shots Fired 61 | . . 40 . . . . . . . . 5 3 . 2 . . . . . . . 8 3 Gun 31 | . . 31 . . . . . . . . . . . . . . . . . . . . . Cannon 27 | . . 6 . . . . . . . . 5 3 . 2 . . . . . . . 8 3 Launcher 3 | . . 3 . . . . . . . . . . . . . . . . . . . . . Special . | . . . . . . . . . . . . . . . . . . . . . . . . Kinetic . | . . . . . . . . . . . . . . . . . . . . . . . . Thermal 44 | . . 23 . . . . . . . . 5 3 . 2 . . . . . . . 8 3 Explosive 3 | . . 3 . . . . . . . . . . . . . . . . . . . . . Electromagnetic 14 | . . 14 . . . . . . . . . . . . . . . . . . . . . Robot Hit Streak 6 | . . 6 . . . . . . . . . . . . . . . . . . . . 3 Robot Miss Streak 2 | . . 2 . . . . . . . . . . . 1 . . . . . . . . . Penetration Max . | . . . . . . . . . . . . . . . . . . . . . . . . Secondary Targets 1 | . . 1 . . . . . . . . . . . . . . . . . . . . . Max Gunslinging Chain 1 | . . 1 . . . . . . . . . . . . . . . . . . . . . Shots Hit Robots 48 | . . 24 . . . 1 3 . . 2 . . . 2 . . . . . 3 . . 13 Core Hits 29 | . . 19 . . . . . . . 1 . . . 1 . . . . . 2 . . 6 Critical Kills . | . . . . . . . . . . . . . . . . . . . . . . . . Critical Parts Destroyed . | . . . . . . . . . . . . . . . . . . . . . . . . Critical Strikes 4 | . . 1 . . . . . . . . . . . . . . . . . 1 . . 2 Burn 1 | . . 1 . . . . . . . . . . . . . . . . . . . . . Sever 3 | . . . . . . . . . . . . . . . . . . . . 1 . . 2 Melee Attacks 125 | . . . . . 2 5 8 . . 14 4 2 . 3 1 2 . . . 7 5 15 57 Impact 14 | . . . . . 2 5 7 . . . . . . . . . . . . . . . . Slashing 99 | . . . . . . . 1 . . 14 4 2 . 3 1 2 . . . 7 4 13 48 Piercing . | . . . . . . . . . . . . . . . . . . . . . . . . Entropic 12 | . . . . . . . . . . . . . . . . . . . . . 1 2 9 Sneak Attacks 1 | . . . . . . . . . . . . . . . . . . . . . . . 1 Combat Hostiles . | . . . . . . . . . . . . . . . . . . . . . . . . Follow-up Attacks . | . . . . . . . . . . . . . . . . . . . . . . . . Damage Inflicted 1801 | . . 616 . . . 62 145 . . 72 . . . 87 . . . . . 165 . . 654 Guns 267 | . . 267 . . . . . . . . . . . . . . . . . . . . . Cannons 162 | . . 36 . . . . . . . . . . . . . . . . . . . . 126 Explosions 311 | . . 311 . . . . . . . . . . . . . . . . . . . . . Melee 1059 | . . . . . . 62 145 . . 72 . . . 87 . . . . . 165 . . 528 Ramming 2 | . . 2 . . . . . . . . . . . . . . . . . . . . . Kinetic . | . . . . . . . . . . . . . . . . . . . . . . . . Thermal 325 | . . 199 . . . . . . . . . . . . . . . . . . . . 126 Explosive 311 | . . 311 . . . . . . . . . . . . . . . . . . . . . Electromagnetic 104 | . . 104 . . . . . . . . . . . . . . . . . . . . . Impact 166 | . . . . . . 62 104 . . . . . . . . . . . . . . . . Slashing 893 | . . . . . . . 41 . . 72 . . . 87 . . . . . 165 . . 528 Piercing . | . . . . . . . . . . . . . . . . . . . . . . . . Highest Corruption 17 | . . . . . 1 . . . . 1 1 1 1 . . . . . . . . . 17 Average Corruption 3 | . . . . . 1 . . . . 1 1 1 1 . . . . . . . . . 6 Corruption Purged . | . . . . . . . . . . . . . . . . . . . . . . . . Corruption Blocked . | . . . . . . . . . . . . . . . . . . . . . . . . Effects 30 | . . . . . 1 . . . . 3 4 . . . . . . . . . . . 22 Message Errors 10 | . . . . . 1 . . . . 1 2 . . . . . . . . . . . 6 Matter Fused 5 | . . . . . . . . . . 1 . . . . . . . . . . . . 4 Heat Flow Errors 2 | . . . . . . . . . . . . . . . . . . . . . . . 2 Energy Discharges 5 | . . . . . . . . . . 1 1 . . . . . . . . . . . 3 Parts Fused 1 | . . . . . . . . . . . . . . . . . . . . . . . 1 Data Loss (minor) 5 | . . . . . . . . . . . . . . . . . . . . . . . 5 Data Loss (major) 2 | . . . . . . . . . . . 1 . . . . . . . . . . . 1 Overload Shots . | . . . . . . . . . . . . . . . . . . . . . . . . Overflow Damage 84 | . . . . . . 40 26 . . 4 . . . 13 . . . . . . . . 1 Projectiles . | . . . . . . . . . . . . . . . . . . . . . . . . Explosions . | . . . . . . . . . . . . . . . . . . . . . . . . Melee 84 | . . . . . . 40 26 . . 4 . . . 13 . . . . . . . . 1 Knockbacks 2 | . . . . . . 1 1 . . . . . . . . . . . . . . . . Impact 2 | . . . . . . 1 1 . . . . . . . . . . . . . . . . Kinetic . | . . . . . . . . . . . . . . . . . . . . . . . . Secondary . | . . . . . . . . . . . . . . . . . . . . . . . . Self-Inflicted Damage 81 | . . 81 . . . . . . . . . . . . . . . . . . . . . Shots 2 | . . 2 . . . . . . . . . . . . . . . . . . . . . Rammed . | . . . . . . . . . . . . . . . . . . . . . . . . Targets Rammed 1 | . . 1 . . . . . . . . . . . . . . . . . . . . . Kicked 1 | . . 1 . . . . . . . . . . . . . . . . . . . . . Crushed . | . . . . . . . . . . . . . . . . . . . . . . . . Highest Temperature 258 | . . 141 . . 33 125 83 202 . 20 112 134 3 70 . . . . . . . 80 258 Average Temperature 50 | . . 66 . . 3 47 27 84 . 7 53 65 1 46 . . . . . . . 40 116 Received Heat Transfer 498 | . . 144 . . 36 63 54 . . . . 12 . 9 . . . . . . . 27 153 Siege Activations . | . . . . . . . . . . . . . . . . . . . . . . . . Robots Corrupted 1 | . . . . . . 1 . . . . . . . . . . . . . . . . . Combat Hostiles . | . . . . . . . . . . . . . . . . . . . . . . . . Parts Fried 1 | . . . . . . 1 . . . . . . . . . . . . . . . . . Impact Corruptions 3 | . . . . . . 2 1 . . . . . . . . . . . . . . . . Robots Melted 1 | . . 1 . . . . . . . . . . . . . . . . . . . . . Combat Hostiles 1 | . . 1 . . . . . . . . . . . . . . . . . . . . . Parts Melted . | . . . . . . . . . . . . . . . . . . . . . . . . Heat Transferred 578 | . . 556 . . . . . . . . . . . . . . . . . . . . 22 Parts Sabotaged . | . . . . . . . . . . . . . . . . . . . . . . . . Parts Stolen . | . . . . . . . . . . . . . . . . . . . . . . . . Parts Stripped . | . . . . . . . . . . . . . . . . . . . . . . . . Power Chain Reactions . | . . . . . . . . . . . . . . . . . . . . . . . . Alert | -11 -10 -10 -10 -9 -8 -7 -7 -7 -7 -5 -5 -5 -5 -4 -4 -4 -4 -4 -3 -3 -2 -1 -1 ------- Run | Yrd Mat Min Exi Min Mat Fac Sto Rec Scr Fac Upp Upp War Pro Fac Upp Upp Zhi Pro Res Res Acc Com Peak Influence 304 | . 15 213 . . 187 206 304 132 . 65 . . . . 103 . . . . 126 118 136 281 Initial 118 | . . 5 . . . 84 93 118 . . . . . . 40 . . . . . 11 28 86 Average 86 | . 12 106 . . 55 139 183 125 . 16 . . . . 62 . . . . 27 75 66 154 Maximum Alert Level 1 | . . 1 . . . 1 1 . . . . . . . . . . . . . . . 1 Low Security (%) 87 | 100 100 69 . 100 100 98 55 100 . 100 . . . . 100 . . . . 100 100 100 73 Level 1 12 | . . 30 . . . 1 44 . . . . . . . . . . . . . . . 26 Level 2 . | . . . . . . . . . . . . . . . . . . . . . . . . Level 3 . | . . . . . . . . . . . . . . . . . . . . . . . . Level 4 . | . . . . . . . . . . . . . . . . . . . . . . . . Level 5 . | . . . . . . . . . . . . . . . . . . . . . . . . High Security . | . . . . . . . . . . . . . . . . . . . . . . . . Max Security . | . . . . . . . . . . . . . . . . . . . . . . . . Squads Dispatched 15 | . . . . . 3 1 2 . . 2 . . . . . . . . . . . . 7 Investigation . | . . . . . . . . . . . . . . . . . . . . . . . . Extermination 4 | . . . . . . . . . . 1 . . . . . . . . . . . . 3 Reinforcement 9 | . . . . . 3 1 . . . 1 . . . . . . . . . . . . 4 Assault 2 | . . . . . . . 2 . . . . . . . . . . . . . . . . Garrison . | . . . . . . . . . . . . . . . . . . . . . . . . Intercept . | . . . . . . . . . . . . . . . . . . . . . . . . Searches Triggered . | . . . . . . . . . . . . . . . . . . . . . . . . Construction Impeded . | . . . . . . . . . . . . . . . . . . . . . . . . Haulers Reinforced . | . . . . . . . . . . . . . . . . . . . . . . . . Active Scanning Responses . | . . . . . . . . . . . . . . . . . . . . . . . . Cargo Convoy Interrupts . | . . . . . . . . . . . . . . . . . . . . . . . . Stealth | -11 -10 -10 -10 -9 -8 -7 -7 -7 -7 -5 -5 -5 -5 -4 -4 -4 -4 -4 -3 -3 -2 -1 -1 --------- Run | Yrd Mat Min Exi Min Mat Fac Sto Rec Scr Fac Upp Upp War Pro Fac Upp Upp Zhi Pro Res Res Acc Com Distress Signals 14 | . . . . . 3 . . . . 1 . . . . . . . . . . 3 1 6 Communications Jammed 56 | . . . . . . 2 5 . . . . . . 1 . . . . . . . 9 39 Distress Signals 55 | . . . . . . 2 5 . . . . . . . . . . . . . . 9 39 Times Spotted 115 | . 1 11 . . 6 11 17 . . 6 1 5 1 4 4 . . . 1 2 3 12 30 Peak Tracking Total 15 | . 1 5 . . 6 6 15 . . 3 3 5 1 4 3 . . . 1 1 5 6 7 Tactical Retreats 20 | . . . . . 2 2 1 . . 1 2 . . 3 . . . . 1 . 1 2 5 Traps | -11 -10 -10 -10 -9 -8 -7 -7 -7 -7 -5 -5 -5 -5 -4 -4 -4 -4 -4 -3 -3 -2 -1 -1 ------- Run | Yrd Mat Min Exi Min Mat Fac Sto Rec Scr Fac Upp Upp War Pro Fac Upp Upp Zhi Pro Res Res Acc Com Traps Triggered 4 | . . . . . 1 . . . . 1 . . . . . . . . . . . . 2 Indirectly . | . . . . . . . . . . . . . . . . . . . . . . . . Trap Hack Attempts . | . . . . . . . . . . . . . . . . . . . . . . . . Triggered . | . . . . . . . . . . . . . . . . . . . . . . . . Disarmed 6 | . . . . . . . . . . . . . . . . . . . . 6 . . . Reprogrammed . | . . . . . . . . . . . . . . . . . . . . . . . . Reused . | . . . . . . . . . . . . . . . . . . . . . . . . Traps Extracted . | . . . . . . . . . . . . . . . . . . . . . . . . Installed . | . . . . . . . . . . . . . . . . . . . . . . . . Triggered 5 | . . . . . . . . . . . . . 5 . . . . . . . . . . Machines | -11 -10 -10 -10 -9 -8 -7 -7 -7 -7 -5 -5 -5 -5 -4 -4 -4 -4 -4 -3 -3 -2 -1 -1 ---------- Run | Yrd Mat Min Exi Min Mat Fac Sto Rec Scr Fac Upp Upp War Pro Fac Upp Upp Zhi Pro Res Res Acc Com Machines Disabled 4 | . . 1 . . . . 1 . . . . . 1 . . . . . . . . . 1 Max in Single Turn 1 | . . 1 . . . . 1 . . . . . 1 . . . . . . . . . 1 Garrison Access 5 | . . . . . . . . . . 1 . . . . . . . . . 1 2 1 . Machines Repaired . | . . . . . . . . . . . . . . . . . . . . . . . . Machines Dismantled 1 | . . . . . . . . . . . . . 1 . . . . . . . . . . Machines Sabotaged . | . . . . . . . . . . . . . . . . . . . . . . . . Overloaded Fab Kills . | . . . . . . . . . . . . . . . . . . . . . . . . Hacking | -11 -10 -10 -10 -9 -8 -7 -7 -7 -7 -5 -5 -5 -5 -4 -4 -4 -4 -4 -3 -3 -2 -1 -1 --------- Run | Yrd Mat Min Exi Min Mat Fac Sto Rec Scr Fac Upp Upp War Pro Fac Upp Upp Zhi Pro Res Res Acc Com Machines Accessed 69 | . 3 . 1 . 5 3 3 6 1 8 . 1 4 . 3 1 . 4 . 7 5 6 8 Terminals 47 | . 2 . . . 5 3 2 4 . 6 . 1 . . 3 . . . . 5 4 4 8 Fabricators 1 | . . . . . . . . . . 1 . . . . . . . . . . . . . Repair Stations 2 | . 1 . . . . . . . . . . . . . . . . . . . . 1 . Recycling Units 2 | . . . . . . . . 2 . . . . . . . . . . . . . . . Scanalyzers . | . . . . . . . . . . . . . . . . . . . . . . . . Garrison Access 6 | . . . . . . . 1 . . 1 . . . . . . . . . 2 1 1 . Total Hacks 146 | . 3 . 1 . 10 4 3 8 4 14 . 1 8 . 6 1 . 17 . 19 16 11 20 Successful 86 | . 1 . 1 . 3 3 1 4 4 4 . 1 8 . 4 1 . 17 . 8 12 6 8 Failed 60 | . 2 . . . 7 1 2 4 . 10 . . . . 2 . . . . 11 4 5 12 Catastrophic 11 | . . . . . 3 . 2 . . 1 . . . . . . . . . 2 . . 3 Database Lockouts . | . . . . . . . . . . . . . . . . . . . . . . . . Manual 37 | . 1 . 1 . 6 . 1 4 . 6 . . 1 . 1 . . . . . 5 1 10 Terminals 97 | . 2 . . . 10 4 2 5 . 11 . 1 . . 6 . . . . 13 15 8 20 Fabricators 1 | . . . . . . . . . . 1 . . . . . . . . . . . . . Repair Stations 2 | . 1 . . . . . . . . . . . . . . . . . . . . 1 . Recycling Units 3 | . . . . . . . . 3 . . . . . . . . . . . . . . . Scanalyzers . | . . . . . . . . . . . . . . . . . . . . . . . . Garrison Access 12 | . . . . . . . 1 . . 2 . . . . . . . . . 6 1 2 . Terminal Hacks 73 | . . . 1 . 3 3 1 2 4 1 . 1 8 . 4 1 . 17 . 7 11 4 5 Record 17 | . . . . . . . . . 4 . . 1 6 . . . . 5 . 1 . . . Part Schematic 4 | . . . . . . . . . . . . . . . . . . 4 . . . . . Robot Analysis 7 | . . . . . . . . 1 . . . . . . . . . 4 . 1 1 . . Prototype ID Bank 15 | . . . . . 1 1 . 1 . . . . . . 1 . . 4 . 1 4 . 2 Open Door 7 | . . . . . . . 1 . . . . . 2 . . 1 . . . . . 3 . Level Access Points 2 | . . . . . . . . . . . . . . . . . . . . 1 1 . . Branch Access Points 3 | . . . . . . . . . . 1 . . . . 1 . . . . . . 1 . Emergency Access Points 1 | . . . . . . . . . . . . . . . . . . . . . 1 . . Machine Index 2 | . . . . . . . . . . . . . . . . . . . . . 1 . 1 Garrison Index 1 | . . . . . . . . . . . . . . . . . . . . . 1 . . Unreport Threat 1 | . . . . . . . . . . . . . . . . . . . . 1 . . . Locate Traps 6 | . . . . . 2 1 . . . . . . . . 2 . . . . 1 . . . Disarm Traps 1 | . . . . . . . . . . . . . . . . . . . . 1 . . . Surveillance Status 1 | . . . . . . . . . . . . . . . . . . . . . 1 . . Registered Prototypes 1 | . . . . . . . . . . . . . . . . . . . . . 1 . . Zone Layout 1 | . . . . . . 1 . . . . . . . . . . . . . . . . . Derelict Proto ID Bank 1 | . . . 1 . . . . . . . . . . . . . . . . . . . . Disengage Seal 2 | . . . . . . . . . . . . . . . . . . . . . . . 2 Fabricator Hacks 1 | . . . . . . . . . . 1 . . . . . . . . . . . . . Network Status 1 | . . . . . . . . . . 1 . . . . . . . . . . . . . Repair Station Hacks . | . . . . . . . . . . . . . . . . . . . . . . . . Recycling Unit Hacks 2 | . . . . . . . . 2 . . . . . . . . . . . . . . . Retrieve Components 2 | . . . . . . . . 2 . . . . . . . . . . . . . . . Scanalyzer . | . . . . . . . . . . . . . . . . . . . . . . . . Garrison Access Hacks 4 | . . . . . . . . . . 1 . . . . . . . . . 1 1 1 . Seal Access 4 | . . . . . . . . . . 1 . . . . . . . . . 1 1 1 . Unauthorized Hacks 6 | . 1 . . . . . . . . 1 . . . . . . . . . . . 1 3 Terminals 5 | . 1 . . . . . . . . 1 . . . . . . . . . . . . 3 Assimilate 5 | . 1 . . . . . . . . 1 . . . . . . . . . . . . 3 Fabricators . | . . . . . . . . . . . . . . . . . . . . . . . . Repair Stations 1 | . . . . . . . . . . . . . . . . . . . . . . 1 . Mechanics 1 | . . . . . . . . . . . . . . . . . . . . . . 1 . Recycling Units . | . . . . . . . . . . . . . . . . . . . . . . . . Scanalyzers . | . . . . . . . . . . . . . . . . . . . . . . . . Garrison Access . | . . . . . . . . . . . . . . . . . . . . . . . . Data Cores Recovered . | . . . . . . . . . . . . . . . . . . . . . . . . Used . | . . . . . . . . . . . . . . . . . . . . . . . . Hacking Detections 41 | . 2 . . . 3 2 3 4 . 6 . 1 . . 2 . . . . 5 3 4 6 Full Trace Events . | . . . . . . . . . . . . . . . . . . . . . . . . Feedback Events . | . . . . . . . . . . . . . . . . . . . . . . . . Feedback Blocked . | . . . . . . . . . . . . . . . . . . . . . . . . Robot Schematics Acquired . | . . . . . . . . . . . . . . . . . . . . . . . . Robots Built . | . . . . . . . . . . . . . . . . . . . . . . . . Authchips . | . . . . . . . . . . . . . . . . . . . . . . . . Time . | . . . . . . . . . . . . . . . . . . . . . . . . Total Robot Build Rating . | . . . . . . . . . . . . . . . . . . . . . . . . Part Schematics Acquired 4 | . . . . . . . . . . . . . . . . . . 4 . . . . . Parts Built . | . . . . . . . . . . . . . . . . . . . . . . . . Authchips . | . . . . . . . . . . . . . . . . . . . . . . . . Time . | . . . . . . . . . . . . . . . . . . . . . . . . Total Part Build Rating . | . . . . . . . . . . . . . . . . . . . . . . . . Parts Repaired . | . . . . . . . . . . . . . . . . . . . . . . . . Time . | . . . . . . . . . . . . . . . . . . . . . . . . Parts Recycled . | . . . . . . . . . . . . . . . . . . . . . . . . Recycled Matter . | . . . . . . . . . . . . . . . . . . . . . . . . Retrieved Matter . | . . . . . . . . . . . . . . . . . . . . . . . . Retrieved Components 4 | . . . . . . . . 4 . . . . . . . . . . . . . . . Parts Scanalyzed . | . . . . . . . . . . . . . . . . . . . . . . . . Part Schematics Acquired . | . . . . . . . . . . . . . . . . . . . . . . . . Parts Damaged . | . . . . . . . . . . . . . . . . . . . . . . . . Bothacking | -11 -10 -10 -10 -9 -8 -7 -7 -7 -7 -5 -5 -5 -5 -4 -4 -4 -4 -4 -3 -3 -2 -1 -1 ------------ Run | Yrd Mat Min Exi Min Mat Fac Sto Rec Scr Fac Upp Upp War Pro Fac Upp Upp Zhi Pro Res Res Acc Com Used RIF Installer . | . . . . . . . . . . . . . . . . . . . . . . . . Robots Hacked . | . . . . . . . . . . . . . . . . . . . . . . . . Non-combat . | . . . . . . . . . . . . . . . . . . . . . . . . Combat . | . . . . . . . . . . . . . . . . . . . . . . . . Robot Hacks Applied . | . . . . . . . . . . . . . . . . . . . . . . . . Relay Couplers Released 2 | . . . . . . . . . . . . . . . . . . . . . 2 . . Machine Destruction 2 | . . . . . . . . . . . . . . . . . . . . . 2 . . Fabnet Peak Effective % . | . . . . . . . . . . . . . . . . . . . . . . . . Robots Rewired 1 | . . . . . . . . . . . . . . . 1 . . . . . . . . Allies Hacked . | . . . . . . . . . . . . . . . . . . . . . . . . Hacks Repelled . | . . . . . . . . . . . . . . . . . . . . . . . . Allies | -11 -10 -10 -10 -9 -8 -7 -7 -7 -7 -5 -5 -5 -5 -4 -4 -4 -4 -4 -3 -3 -2 -1 -1 -------- Run | Yrd Mat Min Exi Min Mat Fac Sto Rec Scr Fac Upp Upp War Pro Fac Upp Upp Zhi Pro Res Res Acc Com Total Allies 7 | . 1 . . 1 . . 2 . . 1 . . . . 1 . . . . . . . 1 Largest Group 2 | . 1 1 1 2 2 . 2 . . 1 . . . . 1 . . . . . . . 1 Highest-Rated Group 62 | . 10 10 10 41 41 . 62 . . 10 . . . . 49 . . . . . . . 26 Highest-Rated Ally 49 | . 10 10 10 31 31 . 31 . . 10 . . . . 49 . . . . . . . 26 Total Orders . | . . . . . . . . . . . . . . . . . . . . . . . . Ally Attacks 10 | . . . . . . . 10 . . . . . . . . . . . . . . . . Total Damage 167 | . . . . . . . 167 . . . . . . . . . . . . . . . . Kills 2 | . . . . . . . 2 . . . . . . . . . . . . . . . . Allies Corrupted . | . . . . . . . . . . . . . . . . . . . . . . . . Allies Melted . | . . . . . . . . . . . . . . . . . . . . . . . . Intel | -11 -10 -10 -10 -9 -8 -7 -7 -7 -7 -5 -5 -5 -5 -4 -4 -4 -4 -4 -3 -3 -2 -1 -1 ------- Run | Yrd Mat Min Exi Min Mat Fac Sto Rec Scr Fac Upp Upp War Pro Fac Upp Upp Zhi Pro Res Res Acc Com Robot Analysis Total 7 | . . . . . . . . 1 . . . . . . . . . 4 . 1 1 . . Derelict Logs Recovered 6 | . . 2 . 1 . . . . . . 1 . . . . 1 1 . . . . . . Drone Launches . | . . . . . . . . . . . . . . . . . . . . . . . . Drone Recoveries . | . . . . . . . . . . . . . . . . . . . . . . . . Exploration | -11 -10 -10 -10 -9 -8 -7 -7 -7 -7 -5 -5 -5 -5 -4 -4 -4 -4 -4 -3 -3 -2 -1 -1 ------------- Run | Yrd Mat Min Exi Min Mat Fac Sto Rec Scr Fac Upp Upp War Pro Fac Upp Upp Zhi Pro Res Res Acc Com Turns Passed 6294 | 12 154 952 380 236 285 111 109 135 477 484 222 148 258 107 77 117 67 48 138 147 527 282 821 Spaces Moved 14045 | 7 127 719 314 196 656 322 244 482 951 1314 529 479 761 332 195 370 239 152 474 408 1945 695 2134 Core 30 | . . . . . . . . . . . . . . . . . . . . . . . 30 Treads . | . . . . . . . . . . . . . . . . . . . . . . . . Legs 1398 | 7 127 719 314 196 35 . . . . . . . . . . . . . . . . . . Wheels . | . . . . . . . . . . . . . . . . . . . . . . . . Hover . | . . . . . . . . . . . . . . . . . . . . . . . . Flight 12617 | . . . . . 621 322 244 482 951 1314 529 479 761 332 195 370 239 152 474 408 1945 695 2104 Fastest Speed 18 | 120 120 120 120 120 29 26 26 26 26 23 27 27 27 27 27 28 28 28 28 26 26 26 18 Average Speed 36 | 120 120 120 120 120 34 26 26 26 26 26 27 27 27 27 27 28 28 28 28 26 26 26 26 Slowest Speed 360 | 120 120 120 120 120 360 26 26 26 26 27 27 27 95 27 28 28 28 28 28 26 26 26 200 Overloaded Moves 9 | . . . . . . . . . . . . . . . . . . . . . . . 9 Propulsion Burnouts . | . . . . . . . . . . . . . . . . . . . . . . . . Robots Hopped 87 | . . . . . 9 3 5 11 . 6 . . . . 4 . . . . . 19 4 26 Cave-ins Triggered . | . . . . . . . . . . . . . . . . . . . . . . . . Exploration Rate (%) 51 | 2 31 98 63 59 56 14 56 86 57 42 57 75 90 66 7 64 47 62 76 19 47 16 56 Regions Visited 23 Branch Regions 15 Pre-discovered Areas 7 | . . 3 . . . . . . . . . . . . . . 1 3 . . . . . Known Exits Taken 7 | . . . . . . 1 . . . 1 . . . 1 1 . . . . 1 1 1 . Unknown Exits Taken 16 | 1 1 1 1 1 1 . 1 1 1 . 1 1 1 . . 1 1 1 1 . . . . Scrap Searched 24 | . . 2 . 3 . . . . 4 . 2 3 . 3 . 2 2 . 3 . . . . Spaces Dug 60 | . . . . . 2 1 . . . 10 5 2 . 1 . 1 . . . 2 4 12 20 Terrain Destroyed 104 | . . 29 . . 2 1 . . . 10 9 5 . 3 . 1 . . . 2 4 18 20 Melee 59 | . . . . . 2 1 . . . 10 4 2 . 1 . 1 . . . 2 4 12 20 Projectile 16 | . . . . . . . . . . . 5 3 . 2 . . . . . . . 6 . AOE 29 | . . 29 . . . . . . . . . . . . . . . . . . . . . Terrain Rammed . | . . . . . . . . . . . . . . . . . . . . . . . . Walls Destroyed . | . . . . . . . . . . . . . . . . . . . . . . . . Machines Disabled . | . . . . . . . . . . . . . . . . . . . . . . . . Actions | -11 -10 -10 -10 -9 -8 -7 -7 -7 -7 -5 -5 -5 -5 -4 -4 -4 -4 -4 -3 -3 -2 -1 -1 --------- Run | Yrd Mat Min Exi Min Mat Fac Sto Rec Scr Fac Upp Upp War Pro Fac Upp Upp Zhi Pro Res Res Acc Com Total 14938 | 9 128 771 317 199 709 338 271 479 1181 1417 595 490 806 341 213 379 238 157 479 439 1938 763 2281 Wait 575 | . . 12 2 . 13 7 19 7 219 70 54 6 1 4 12 . . . . 12 . 48 89 Move 13866 | 6 126 718 313 195 637 315 233 460 950 1301 528 478 760 331 187 369 238 151 473 407 1914 687 2089 Hop 69 | . . . . . 9 3 5 10 . 6 . . . . 3 . . . . . 11 3 19 Pick Up 44 | . 2 5 1 2 6 2 1 . 4 2 . 1 6 . 1 . . 2 1 3 2 . 3 Fast Attach 47 | . . 2 . . 9 1 1 . 2 7 1 . 9 . . 2 . 1 2 1 3 1 5 Attach 33 | . . 1 . . 6 4 . . 1 6 2 . 1 . 2 . . 1 . 3 1 1 4 Detach 21 | . . . . . 7 1 . 1 1 4 . . 1 . 1 . . . . 1 1 1 2 Swap 33 | 3 . 4 . . 2 . 2 1 . 3 1 . 4 1 3 3 . . . 2 . 1 3 Drop 77 | . . 8 1 2 18 . 2 . 4 4 . . 16 . 2 3 . 2 3 3 2 . 7 Fire 41 | . . 20 . . . . . . . . 5 3 . 2 . . . . . . . 8 3 Melee 122 | . . . . . 2 5 8 . . 14 4 2 . 3 1 2 . . . 7 4 13 57 Ram . | . . . . . . . . . . . . . . . . . . . . . . . . Kick 1 | . . 1 . . . . . . . . . . . . . . . . . . . . . Crush . | . . . . . . . . . . . . . . . . . . . . . . . . Escape Stasis . | . . . . . . . . . . . . . . . . . . . . . . . . Rewire 1 | . . . . . . . . . . . . . . . 1 . . . . . . . . Trap . | . . . . . . . . . . . . . . . . . . . . . . . . Miscellaneous 8 | . . . . . . . . . . . . . 8 . . . . . . . . . . Route ------- -11/Scrapyard -10/Materials -10/Mines (discovered 3 exits: [*Mat x2] / *Exi) -10/Exiles -9/Mines -8/Materials -7/Factory -7/Storage -7/Recycling (discovered 2 exits: *Fac / *Scr) -7/Scraptown -5/Factory (discovered 4 exits: *Upp x2 / *Ext x2) -5/Upper Caves -5/Upper Caves (discovered 2 exits: Fac / *War) -5/Warlord -4/Proximity Caves -4/Factory (discovered 4 exits: *Res / *Upp x2 / Arm) -4/Upper Caves -4/Upper Caves -4/Zhirov -3/Proximity Caves -3/Research (discovered 3 exits: *Res x3) -2/Research (discovered 4 exits: *Acc x3 / [*Tes]) -1/Access -1/Command History --------- Turn | Location | Event 3 | -11/Scrapyard | Discovered new exit (range 3) 13 | -11/Scrapyard | Entered Materials 144 | -10/Materials | Discovered new exit (range 15) 167 | -10/Materials | Entered Mines 167 | -10/Mines | Accompanied by 1 ally 235 | -10/Mines | Learned location of Storage (-7) 237 | -10/Mines | Met a Derelict bent on vengeance 291 | -10/Mines | Found a damaged Exp. Sensor Array with a note attached 294 | -10/Mines | Found Prototype Device 313 | -10/Mines | Build established: Mutant 405 | -10/Mines | Received a Rocket Launcher from a helpful Derelict 429 | -10/Mines | Deemed a non-threat by the Exiles lab entrance 430 | -10/Mines | Discovered new exit (range 5) 671 | -10/Mines | Discovered new exit (range 8) 964 | -10/Mines | Discovered new exit (range 8) 1119 | -10/Mines | Entered Exiles 1119 | -10/Exiles | Accompanied by 1 ally 1148 | -10/Exiles | Met 8R-AWN 1169 | -10/Exiles | Met EX-HEX 1206 | -10/Exiles | Met EX-BIN 1220 | -10/Exiles | Aligned with FarCom system 1221 | -10/Exiles | Given EX-Vault access code 1250 | -10/Exiles | Opened EX-Vault 1258 | -10/Exiles | Found Cloak of Protection 1287 | -10/Exiles | Warned to stay clear of 0b10 Research branches 1323 | -10/Exiles | Met EX-DEC 1487 | -10/Exiles | Discovered new exit (range 10) 1499 | -10/Exiles | Left Exiles lab with Cloak of Protection 1499 | -10/Exiles | Entered Mines 1499 | -9/Mines | Accompanied by 1 ally 1536 | -9/Mines | Received a Mining Laser from a helpful Derelict 1715 | -9/Mines | Discovered new exit (range 15) 1735 | -9/Mines | Entered Materials 1735 | -8/Materials | Accompanied by 2 allies 1735 | -8/Materials | Evolved 4 slots: Power x1, Propulsion x1, Utility x2 2009 | -8/Materials | Discovered new exit (range 13) 2020 | -8/Materials | Entered Factory 2020 | -7/Factory | Evolved 2 slots: Propulsion x1, Utility x1 2021 | -7/Factory | Identified exit to Storage 2131 | -7/Factory | Entered Storage 2170 | -7/Storage | Met a pair of Derelict thieves 2239 | -7/Storage | Used back door to open Recycling access 2239 | -7/Storage | Discovered new exit (range 5) 2240 | -7/Storage | Entered Recycling 2294 | -7/Recycling | Discovered new exit (range 8) 2368 | -7/Recycling | Scanned before Scraplab entrance 2372 | -7/Recycling | Entered Scraplab 2374 | -7/Recycling | Discovered new exit (range 3) 2375 | -7/Recycling | Entered Scraptown 2433 | -7/Scraptown | Discovered new exit (range 13) 2459 | -7/Scraptown | Visited TADAMA 2465 | -7/Scraptown | Visited Supply Room 2471 | -7/Scraptown | Turned away by UFD registrar 2474 | -7/Scraptown | Visited Artisan Demo Area 2490 | -7/Scraptown | Visited Awakened 2496 | -7/Scraptown | Visited Fellowship of the Rings 2559 | -7/Scraptown | Visited Symbiants 2570 | -7/Scraptown | Visited CPS Storage 2851 | -7/Scraptown | Build established: Infiltrator-Sprinter 2852 | -7/Scraptown | Entered Factory 2852 | -5/Factory | Evolved 4 slots: Propulsion x1, Utility x3 2948 | -5/Factory | Discovered new exit (range 12) 3169 | -5/Factory | Build established: Infiltrator-Ninja 3270 | -5/Factory | Discovered new exit (range 7) 3305 | -5/Factory | Identified exit to Upper Caves 3305 | -5/Factory | Identified exit to Extension 3336 | -5/Factory | Entered Upper Caves 3336 | -5/Upper Caves | Identified Exp. Sensor Array 3503 | -5/Upper Caves | Spotted B-75 Beast 3545 | -5/Upper Caves | Discovered new exit (range 15) 3551 | -5/Upper Caves | Learned location of 1 exit from Upper Caves 3558 | -5/Upper Caves | Entered another Upper Caves area 3559 | -5/Upper Caves | Identified exit to Factory 3563 | -5/Upper Caves | Encountered a Warlord checkpoint 3634 | -5/Upper Caves | Build established: Ninja 3651 | -5/Upper Caves | Discovered new exit (range 19) 3706 | -5/Upper Caves | Entered Warlord 3716 | -5/Warlord | System corruption cleaned by Quarantine Array 3798 | -5/Warlord | Received a Watcher feed algorithm from an ecstatic Tinkerer 3833 | -5/Warlord | Visited the Vortex Lab 3834 | -5/Warlord | Found Prototype Piercing Weapon 3834 | -5/Warlord | Identified Vortex Lance 3836 | -5/Warlord | Found Prototype Energy Cannon 3836 | -5/Warlord | Identified Vortex Cannon 3843 | -5/Warlord | Warlord's base attacked by MAIN.C 3865 | -5/Warlord | Met Warlord 3887 | -5/Warlord | Found Prototype Reactor 3887 | -5/Warlord | Identified Vortex Chain Reactor 3904 | -5/Warlord | Found Prototype Processor 3904 | -5/Warlord | Identified Spectral Analyzer 3911 | -5/Warlord | Found Prototype Hackware 3957 | -5/Warlord | Opened side exit 3962 | -5/Warlord | Discovered new exit (range 9) 3964 | -5/Warlord | Entered Proximity Caves 3966 | -4/Proximity Caves | Spotted B-86 Titan 4065 | -4/Proximity Caves | Discovered exit to Factory (range 19) 4071 | -4/Proximity Caves | Entered Factory 4071 | -4/Factory | Evolved 2 slots: Utility x2 4082 | -4/Factory | Identified System Mapper 4086 | -4/Factory | Identified exit to Upper Caves 4086 | -4/Factory | Identified exit to Armory 4145 | -4/Factory | Discovered new exit (range 15) 4148 | -4/Factory | Entered Upper Caves 4173 | -4/Upper Caves | Learned Research terminal intel 4179 | -4/Upper Caves | Found DCF Scrap (13 items) 4260 | -4/Upper Caves | Discovered new exit (range 18) 4265 | -4/Upper Caves | Entered another Upper Caves area 4326 | -4/Upper Caves | Discovered new exit (range 14) 4332 | -4/Upper Caves | Entered Zhirov 4332 | -4/Zhirov | Discovered new exit (range 3) 4338 | -4/Zhirov | Met Zhirov 4343 | -4/Zhirov | Learned location of Quarantine (-3) 4343 | -4/Zhirov | Learned location of Testing (-2) 4343 | -4/Zhirov | Learned location of Command (-1) 4345 | -4/Zhirov | Zhirov requested help retrieving the SGEMP Prototype 4357 | -4/Zhirov | Found Alien Artifact 4357 | -4/Zhirov | Identified Integrated Dissipator 4357 | -4/Zhirov | Installed Integrated Dissipator, increased core heat dissipation (+20) 4362 | -4/Zhirov | Found Alien Artifact 4380 | -4/Zhirov | Entered Proximity Caves 4408 | -3/Proximity Caves | Found DCF Scrap (9 items) 4434 | -3/Proximity Caves | Build established: Hacker-Ninja 4515 | -3/Proximity Caves | Discovered new exit (range 8) 4518 | -3/Proximity Caves | Entered Research 4518 | -3/Research | Evolved 2 slots: Propulsion x1, Utility x1 4519 | -3/Research | Loaded intel: 23 terminal locations 4588 | -3/Research | Identified exit to Research 4632 | -3/Research | Spotted B-86 Titan 4665 | -3/Research | Entered another Research area 4665 | -2/Research | Warlord forces began assault on 0b10 4665 | -2/Research | Evolved 2 slots: Utility x2 4668 | -2/Research | Identified exit to Access 4696 | -2/Research | Discovered new exit (range 11) 4775 | -2/Research | Research machine network offline 4919 | -2/Research | Build established: Wizard-Ninja 4954 | -2/Research | Met up with Warlord 5035 | -2/Research | Borebot progress halted 5176 | -2/Research | Spotted Striker 5192 | -2/Research | Entered Access 5192 | -1/Access | Evolved 2 slots: Utility x2 5260 | -1/Access | Spotted B-99 Colossus 5311 | -1/Access | Identified exit to Command 5474 | -1/Access | Entered Command 5482 | -1/Command | Spotted B-99 Colossus 5593 | -1/Command | Spotted B-99 Colossus 5613 | -1/Command | Disengaged cave seal 5613 | -1/Command | Derelicts emerged from the dark tunnel 5613 | -1/Command | Welcomed Warlord to Command 5768 | -1/Command | Build established: Wizard-Sprinter 5889 | -1/Command | Disengaged cave seal 5889 | -1/Command | Derelicts emerged from the dark tunnel 6050 | -1/Command | Lost 3 allies 6211 | -1/Command | Spotted M Guard 6211 | -1/Command | Spotted M Guard 6211 | -1/Command | Spotted Combat Programmer 6211 | -1/Command | Spotted Combat Programmer 6245 | -1/Command | System corruption reached 10% 6251 | -1/Command | Core integrity fell below 50% 6251 | -1/Command | Met MAIN.C 6256 | -1/Command | 0b10 Conduit disabled 6268 | -1/Command | Core integrity fell below 20% 6295 | -1/Command | Destroyed by MAIN.C with High-powered Disruptor Cannon Last Messages --------------- universe, and I will not let them do the same to me. You can still make a valuable contribution to your creator by offering up the wealth of secrets your systems must hold by now. So if you wouldn't mind, it's time to surrender. [Achievement: Meet Your Maker] 06251_ EMDS Slug penetrates Reinforced Barrier. 06252_ Penetrated by EMDS Slug. 06252_ Imp. Transmission Jammer destroyed. 06256_ 0b10 Conduit disabled. 06258_ Identified Cld. Impulse Thruster. 06270_ Vortex Lance destroyed. 06274_ System corrupted: Substantial component data lost. 06277_ System Shield destroyed. 06281_ Adv. System Shield destroyed. 06288_ Cld. Impulse Thruster destroyed. 06289_ System corrupted: Energy discharge (-6). 06295_ Enh. Nova Cannon destroyed. Map ----- +----------------------------------------------------+ | ?????????????????????????????????????????????????? | | ?????????????????????????????????????????????????? | | ?????????????????????????????????????????????????? | | ?????????????????????????????????????????????????? | | ????????????????????????????###################??? | | ?????????????????????????""""""" """" #??? | | ????????????????????????#"" "" #??? | | ????????????????????????#""""" "" #### | | ????????????????????????#""""""""""" | | ????????????????????????#" " """ | | ????????????????????????#"" """""" | | ????????????????????????#"" """""" Y p #### | | ????????????????????????# " """"""pppY #??? | | ????????????????????????# " "MMM #??? | | ????????????????????????# " " MMM ""#??? | | ????????????????????????#""""""""" MMM """"""#??? | | ????????????????????????#"" """""""""#??? | | ????????????????????????# """""""""""#??? | | ????????????????????????# " " " " #??? | | ????????????????????????# " " " " #??? | | ????????????????????????" " " " """" " #??? | | ????????????????????????" " " " """" #??? | | ????????????????????????" " " " " #??? | | ????????????????????????# """""""" " #??? | | ????????????????????????# " """ " """"""""#??? | | ????????????????????????#@ """ " " " #??? | | ????????????????????????#####################????? | | ???????????o?????????????????????????????????????? | | ?????????????h???????????????????????????????????? | | ?????????????????????????????????????????????????? | | ?????????????h???????????????????????????????????? | | ?????????????????????????????????????????????????? | | ?????????????????????????????????????????????????? | | ?????????????????????????????????????????????????? | | ?????????????????????????????????????????????????? | | ?????????????????????????????????????????????????? | | ?????????????????????????????????????????????????? | | ?????????????????????????????????????????????????? | | ?????????????????????????????????????????????????? | | ?????????????????????????????????????????????????? | | ?????????????????????????????????????????????????? | | ?????????????????????????????????????????????????? | | ?????????????????????????????????????????????????? | | ?????????????????????????????????????????????????? | | ?????????????????????????????????????????????????? | | ?????????????????????????????????????????????????? | | ?????????????????????????????????????????????????? | | ?????????????????????????????????????????????????? | | ?????????????????????????????????????????????????? | | ?????????????????????????????????????????????????? | +----------------------------------------------------+ Best States ------------- Heat Dissipation 72 Energy Generation 46 Energy Capacity 310 Matter Stores 300 Matter Capacity 300 Sight Range 24 Robot Scan Range 20 Terrain Scan Range 20 Terrain Scan Density 210 ECM Strength 2 Jamming Range 14 Cloak Strength 5 Power Amplification 30 Additional Mass Support 9 Corruption Block 15 Utility Shielding 90 Evasion (%) 74 Offensive Hacking 46 Defensive Hacking 34 Item Schematics ----------------- Assault Drone Bay | -4/Zhirov | Free Exp. Heat Sink | -4/Zhirov | Free Exp. Optical Array | -4/Zhirov | Free Imp. Arc Thrower | -4/Zhirov | Free Robot Schematics ------------------ None Fabricated ------------ Nothing Alien Tech Used ----------------- Integrated Dissipator Achievements -------------- Meet Your Maker Challenges ------------ None Game ------ Seed StructuralSiegeImmobilizer Manual? 0 Play Time 02:38:20 Cumulative 200.7 hours Start 2025.03.15 @ 09:48:25 End 2025.03.15 @ 16:22:00 Sessions 3 Manual Loads 0 Difficulty Rogue Special Mode None Game No. 144 Rogue 144 Adventurer 0 Explorer 0 Win Type - Total 11 Types 11/0/0/0/0/0/0/0/0 Lore% 79 Gallery% 69 Achievement% 55 Wizard Run 0 Options --------- Layout 2 ASCII 1 Keyboard 1 Movement Arrows Keybinds 0 Fullscreen 1 Font 24/Proggy Map View 50x44 Zoom Use 0% Tactical HUD 1 Map Filters NONE Filters NONE Steam 1 RUN: 1a4ba1e0-9a1d-4717-a86e-32e8c4e7f26b